bitfinex/quotes_ETHUSD_20250411
["timestamp","ask_amount","ask_price","bid_price","bid_amount"]
[1744359373035,6.43174,1554.8,1554.5,0.3970125]
[1744359373399,12.86379,1554.8,1554.5,0.3970125]
[1744359373602,6.43214,1554.7,1554.5,0.3970125]
[1744359374551,6.43252,1554.6,1554.5,0.3970125]
[1744359374744,6.43417,1554.2,1554.1,0.05]
[1744359374898,15.22191,1554.3,1554.1,0.05]
[1744359375228,8.788,1554.4,1554.2,8.07744]
[1744359375431,4.33347971,1554.8,1554.5,6.43262]
[1744359375600,13.12147971,1554.8,1554.6,6.43238]
[1744359375800,2.5506506,1554.9,1554.6,12.86471]
[1744359376031,10.76434971,1555.0,1554.7,6.43208]
[1744359376243,10.76523971,1554.8,1554.4,6.43309]
[1744359376427,4.33347971,1554.8,1554.5,6.43258]
[1744359376603,4.33347971,1554.8,1554.5,12.86533]
[1744359377232,6.43059,1555.1,1554.7,6.43181]
[1744359377398,6.43059,1555.1,1554.8,1.6434]
[1744359377605,12.8614,1555.1,1554.8,1.6434]
[1744359377928,6.43094,1555.0,1554.8,1.6434]
[1744359378104,6.43059,1555.1,1554.8,1.6434]
[1744359378302,12.86131,1555.1,1554.8,1.6434]
[1744359378510,4.33347971,1555.0,1554.5,1.6434]
[1744359378716,6.43163,1554.9,1554.5,8.07632]
[1744359378914,12.86318,1554.9,1554.5,8.07632]
[1744359379117,6.43252,1554.6,1554.3,8.02072]
[1744359379310,6.43252,1554.6,1554.2,6.43402]
[1744359379311,6.43294,1554.5,1554.2,6.43402]
[1744359379512,10.76688971,1554.4,1554.1,1.6931]
[1744359380130,10.76764971,1554.2,1554.1,0.05]
[1744359380836,13.76764971,1554.2,1554.1,0.05]
[1744359381023,18.06220468,1554.2,1554.1,0.05]
[1744359381230,3.0,1553.8,1553.3,1.5217]
[1744359381425,12.87454,1553.5,1553.1,14.1904559]
[1744359382226,12.87454,1553.5,1553.1,7.7517359]
[1744359382227,10.77100971,1553.4,1553.1,7.7517359]
[1744359382426,10.77100971,1553.4,1553.1,7.7002059]
[1744359382843,17.20739971,1553.6,1553.2,6.43804]
[1744359383029,17.20739971,1553.6,1553.1,14.1389059]
[1744359383030,6.43723,1553.5,1553.1,14.1389059]
[1744359383339,6.43723,1553.5,1553.1,14.1387659]
[1744359383507,13.66982968,1553.6,1553.2,6.43831]
[1744359383714,20.10678968,1553.6,1553.2,6.43831]
[1744359384052,20.10678968,1553.6,1553.2,6.43832]
[1744359384053,7.23311968,1553.6,1553.2,6.43832]
[1744359384258,10.76949971,1553.8,1553.4,6.43716]
[1744359384546,10.76949971,1553.8,1553.3,6.43783]
[1744359384547,8.791,1554.1,1553.5,1.5458]
[1744359384745,6.43587,1553.8,1553.5,7.98285]
[1744359384951,11.41293671,1553.8,1553.5,1.5458]
[1744359385249,6.4364,1553.7,1553.3,8.05016]
[1744359385427,15.22767,1553.6,1553.3,8.05016]
[1744359385627,15.22767,1553.6,1553.0,8.05122]
[1744359385628,1.6185,1553.5,1553.0,8.05122]
[1744359385941,12.87482,1553.5,1553.1,6.43871]
[1744359386115,9.03729997,1553.5,1553.1,6.43871]
[1744359386311,2.59992997,1553.5,1553.0,1.6123]
[1744359386542,25.99820971,1553.6,1553.2,6.438]
[1744359386745,8.791,1553.6,1553.4,6.43721]
[1744359386926,6.09,1554.0,1553.3,1.6392]
[1744359386927,6.43503,1554.0,1553.3,8.07704]
[1744359387128,6.43503,1554.0,1553.7,6.43622]
[1744359387420,12.8703,1554.0,1553.6,6.43646]
[1744359387633,6.43559,1553.9,1553.5,6.43701]
[1744359387849,6.43589,1553.8,1553.5,6.43701]
[1744359388012,5.88117971,1553.9,1553.4,1.6392]
[1744359388344,6.4363,1553.7,1553.4,1.6392]
[1744359388649,8.793,1553.6,1553.4,1.6392]
[1744359389025,15.22968,1553.6,1553.4,1.6392]
[1744359389345,21.66668,1553.6,1553.2,8.10214]
[1744359389545,0.48235732,1554.2,1553.1,6.43866]
[1744359389546,3.0,1554.0,1553.6,6.4365]
[1744359389725,4.6305,1554.0,1553.5,6.43687]
[1744359389922,6.43668,1553.6,1553.2,6.43805]
[1744359390119,15.22968,1553.6,1553.2,6.43805]
[1744359390318,21.66659,1553.6,1553.2,6.43805]
[1744359390912,15.22968,1553.6,1553.2,6.43805]
[1744359391145,8.793,1553.6,1553.1,1.5499]
[1744359391319,8.793,1553.6,1553.4,6.43723]
[1744359392135,8.793,1553.6,1553.4,12.87452]
[1744359392336,9.43589,1553.8,1553.4,12.87452]
[1744359392337,8.794,1554.0,1553.7,6.43603]
[1744359392555,8.794,1554.0,1553.5,1.6305]
[1744359392556,1.5726,1554.0,1553.5,1.6305]
[1744359392849,6.43352,1554.4,1554.0,6.435]
[1744359393050,6.43401,1554.3,1554.0,6.43484]
[1744359393420,7.685814,1554.4,1554.0,12.86965]
[1744359393916,7.685814,1554.4,1554.1,6.43454]
[1744359394423,9.43396,1554.3,1553.8,1.6305]
[1744359394651,9.43396,1554.3,1553.9,12.87034]
[1744359394950,15.86793,1554.3,1553.9,12.87034]
[1744359395446,15.86793,1554.3,1553.9,6.43505]
[1744359395653,6.43328,1554.5,1554.1,6.43437]
[1744359395866,8.786,1554.6,1554.2,6.43403]
[1744359396076,8.786,1554.6,1554.3,6.43359]
[1744359396235,15.21855,1554.6,1554.3,6.43359]
[1744359396571,6.43475,1554.1,1553.8,1.539]
[1744359396756,7.078495,1554.0,1553.6,7.9755]
[1744359397067,6.43585,1553.8,1553.6,1.539]
[1744359397372,6.43585,1553.8,1553.4,6.43745]
[1744359397373,6.43683,1553.6,1553.4,1.5777]
[1744359397531,21.6588,1553.6,1553.2,6.43806]
[1744359397732,15.22183,1553.6,1553.2,12.8762]
[1744359398237,15.22183,1553.6,1553.3,6.43775]
[1744359398450,15.22183,1553.6,1553.1,1.6204]
[1744359398451,8.785,1553.6,1553.4,6.43731]
[1744359398652,9.6635,1553.6,1553.2,6.43827]
[1744359398849,6.43752,1553.4,1553.1,8.05891]
[1744359399669,6.4373,1553.5,1553.1,14.49744]
[1744359399872,6.4373,1553.5,1553.2,6.43829]
[1744359400170,24.18794,1553.6,1553.2,6.43829]
[1744359400573,8.27349904,1553.5,1553.2,6.43829]
[1744359401066,8.27349904,1553.5,1553.1,14.49749]
[1744359401275,8.27349904,1553.5,1553.1,1.6204]
[1744359401471,8.785,1553.6,1553.1,1.6204]
[1744359401670,18.22187,1553.8,1553.4,6.43726]
[1744359401986,13.4525,1553.8,1553.2,6.43811]
[1744359402277,6.4364,1553.7,1553.3,6.43773]
[1744359402478,6.4364,1553.7,1552.9,0.3970125]
[1744359402479,6.43793,1553.3,1552.9,6.8365025]
[1744359402778,8.786,1553.3,1552.9,0.3970125]
[1744359403096,8.786,1553.3,1553.1,6.43848]
[1744359404558,6.43421,1554.2,1553.9,6.4354]
[1744359404758,0.72552486,1554.1,1553.9,6.4354]
[1744359405100,6.4336,1554.4,1554.0,6.43499]
[1744359405249,8.787,1554.5,1554.3,6.43361]
[1744359405449,8.787,1554.5,1554.2,8.07037]
[1744359406190,15.21995,1554.5,1554.2,8.07037]
[1744359406349,6.43255,1554.6,1554.2,8.07035]
[1744359406554,13.961975,1554.6,1554.2,8.07018]
[1744359407151,4.096655,1554.6,1554.2,1.6362]
[1744359407456,6.43393,1554.3,1554.0,1.614]
[1744359407664,6.4344,1554.2,1553.8,12.8715]
[1744359407983,15.21881,1554.3,1553.9,6.43533]
[1744359408171,15.21881,1554.3,1553.9,12.87051]
[1744359408374,15.21881,1554.3,1554.0,6.43492]
[1744359408690,24.26083041,1554.3,1553.9,6.43518]
[1744359409782,6.43418,1554.2,1553.8,6.43577]
[1744359409987,12.86867,1554.2,1553.8,6.43577]
[1744359410280,6.43461,1554.1,1553.7,8.06314]
[1744359410481,6.43507,1554.0,1553.7,8.06314]
[1744359410688,6.43507,1554.0,1553.7,1.6269]
[1744359411348,1.6521,1555.2,1554.3,1.506]
[1744359411550,1.6521,1555.2,1554.9,6.4311]
[1744359411957,1.6521,1555.2,1554.8,6.43164]
[1744359412151,4.6521,1555.2,1554.8,6.43164]
[1744359412390,9.25021,1555.1,1554.7,6.43208]
[1744359412852,1.6521,1555.2,1554.9,6.43086]
[1744359413049,8.0612,1555.4,1554.8,6.43157]
[1744359413266,11.783,1555.3,1554.9,6.431]
[1744359413459,15.21273,1555.3,1554.9,6.431]
[1744359413683,21.64264,1555.3,1554.8,6.43162]
[1744359413885,6.43146,1554.9,1554.4,8.00747]
[1744359414186,8.783,1554.8,1554.5,6.43286]
[1744359414374,8.783,1554.8,1554.5,12.86556]
[1744359414893,8.783,1554.8,1554.6,6.43251]
[1744359415486,9.6613,1554.8,1554.6,6.43251]
[1744359415692,8.783,1554.8,1554.6,6.43251]
[1744359415990,8.783,1554.8,1554.5,6.4329]
[1744359416287,8.783,1554.8,1554.5,12.86563]
[1744359416489,8.783,1554.8,1554.6,6.43246]
[1744359417892,8.783,1554.8,1554.5,6.43273]
[1744359418091,10.304432,1554.8,1554.5,6.43273]
[1744359418689,10.304432,1554.8,1554.6,6.43241]
[1744359418902,10.304432,1554.8,1554.5,6.43273]
[1744359419892,10.304432,1554.8,1554.5,6.43272]
[1744359420389,4.42701408,1555.0,1554.6,6.43249]
[1744359420591,19.63881408,1555.3,1554.9,6.43113]
[1744359420888,6.43075,1555.1,1554.6,6.43215]
[1744359421185,0.943075,1555.1,1554.8,6.43153]
[1744359421397,9.43009,1555.2,1554.8,6.43152]
[1744359421773,9.43009,1555.2,1554.8,12.86305]
[1744359422590,21.20295408,1555.3,1554.9,6.43124]
[1744359422973,27.63281408,1555.3,1554.9,6.43124]
[1744359423499,12.86225,1555.0,1554.6,6.43235]
[1744359423686,6.431,1555.0,1554.6,12.86468]
[1744359423872,6.431,1555.0,1554.6,6.43233]
[1744359424077,12.86225,1555.0,1554.6,6.43233]
[1744359424907,12.86225,1555.0,1554.6,12.86469]
[1744359425217,12.86225,1555.0,1554.6,6.43233]
[1744359425362,6.43206,1554.8,1554.4,8.09396]
[1744359425707,6.43206,1554.8,1554.1,14.16738838]
[1744359425708,6.4333,1554.5,1554.2,6.43416]
[1744359425891,13.85926408,1554.7,1554.2,6.43416]
[1744359426201,7.17541141,1554.6,1554.2,6.43416]
[1744359427207,7.95651,1554.5,1554.0,6.43465]
[1744359427510,1.5233,1554.5,1554.0,1.6044]
[1744359427670,3.0,1554.7,1554.4,6.43317]
[1744359427873,16.83027,1554.8,1554.4,6.43317]
[1744359428213,8.774,1554.8,1554.5,12.86546]
[1744359428512,8.774,1554.8,1554.6,6.43246]
[1744359428670,8.774,1554.8,1554.5,6.43272]
[1744359428995,8.774,1554.8,1554.4,1.5874]
[1744359429301,15.20575,1554.8,1554.1,11.06358]
[1744359429531,8.774,1554.8,1554.5,6.43289]
[1744359429801,15.20589,1554.8,1554.4,6.43321]
[1744359430388,6.4326,1554.6,1554.3,6.43358]
[1744359430589,15.20582,1554.8,1554.4,6.43329]
[1744359430790,8.774,1554.8,1554.5,1.5454]
[1744359431101,6.43227,1554.7,1554.4,6.4333]
[1744359431296,6.43227,1554.7,1554.3,1.6377]
[1744359431498,6.43402,1554.3,1553.9,8.07312]
[1744359431672,6.43402,1554.3,1553.9,14.50833]
[1744359433106,6.43338,1554.4,1554.0,12.86977]
[1744359433317,12.86695,1554.4,1554.0,6.43481]
[1744359433522,1.586695,1554.4,1553.9,1.6377]
[1744359433692,6.43432,1554.2,1553.9,1.6377]
[1744359434011,6.43499,1554.1,1553.8,4.73280838]
[1744359434388,6.43514,1554.0,1553.8,4.73280838]
[1744359434593,6.43542,1553.9,1553.8,4.73280838]
[1744359435122,12.86949,1554.1,1553.8,4.73280838]
[1744359435425,6.43542,1553.9,1553.8,4.73280838]
[1744359435725,6.43514,1554.0,1553.8,4.73280838]
[1744359435928,6.43503,1554.0,1553.8,4.73280838]
[1744359436124,6.43503,1554.0,1553.7,6.43596]
[1744359436322,6.43503,1554.0,1553.6,6.43646]
[1744359436492,6.43503,1554.0,1553.7,6.4361]
[1744359436795,12.8703,1554.0,1553.6,6.43646]
[1744359437124,15.27672274,1554.2,1553.8,12.87135]
[1744359437293,8.774,1554.3,1554.0,6.4347]
[1744359437621,6.4321,1554.7,1554.1,1.5291]
[1744359437821,12.86718,1554.4,1554.1,1.5291]
[1744359438020,7.955,1554.5,1554.1,7.96348]
[1744359438223,1.522,1554.5,1554.2,6.43404]
[1744359438421,21.64132,1554.6,1554.2,12.86805]
[1744359438720,21.64132,1554.6,1554.2,6.43401]
[1744359438721,24.257652,1554.6,1554.2,6.43401]
[1744359438928,6.43295,1554.5,1554.1,7.96352]
[1744359439097,12.86618,1554.5,1554.1,7.96352]
[1744359439622,6.43341,1554.4,1554.1,7.96352]
[1744359439804,6.43341,1554.4,1554.1,1.5291]
[1744359440696,6.43341,1554.4,1554.0,12.8697]
[1744359440697,12.86703,1554.4,1554.0,6.43484]
[1744359440899,6.43341,1554.4,1554.0,6.43484]
[1744359441208,6.43341,1554.4,1554.0,7.242604]
[1744359441747,12.86698,1554.4,1554.0,6.43484]
[1744359442058,6.43377,1554.3,1554.0,6.43484]
[1744359442241,1.6253,1554.2,1553.9,6.43539]
[1744359442447,9.4335,1554.4,1554.0,12.86956]
[1744359442627,6.43354,1554.4,1554.0,6.43466]
[1744359442946,6.43379,1554.3,1554.0,12.86949]
[1744359443334,6.43379,1554.3,1554.0,14.318089]
[1744359443497,6.4343,1554.2,1553.9,1.6165]
[1744359443700,6.4343,1554.2,1553.8,6.4358]
[1744359443927,6.4348,1554.1,1553.7,8.02827]
[1744359444117,8.776,1554.1,1553.8,6.43564]
[1744359444321,15.21063,1554.1,1553.8,6.43564]
[1744359444598,6.43556,1553.9,1553.6,4.73280838]
[1744359444799,6.43624,1553.7,1553.6,4.73280838]
[1744359445240,12.87112,1553.9,1553.6,4.73280838]
[1744359445439,6.43545,1553.9,1553.6,6.43653]
[1744359445602,4.42638017,1553.9,1553.3,4.73280838]
[1744359445809,12.87326,1553.7,1553.3,11.17063838]
[1744359446210,6.4368,1553.6,1553.3,4.73280838]
[1744359446411,6.43749,1553.4,1553.0,8.02489]
[1744359446646,12.87535,1553.4,1553.0,8.02489]
[1744359446842,6.43809,1553.3,1553.0,1.5858]
[1744359447032,6.43809,1553.3,1552.9,18.00882088]
[1744359447345,6.43915,1553.0,1552.9,5.12982088]
[1744359447544,15.21615,1553.0,1552.9,5.12982088]
[1744359448547,15.21615,1553.0,1552.9,0.3970125]
[1744359449725,24.14403017,1553.0,1552.9,0.3970125]
[1744359450152,24.69403017,1553.0,1552.9,0.3970125]
[1744359450327,31.14647565,1553.0,1552.9,0.3970125]
[1744359450658,10.2785,1553.0,1552.9,0.3970125]
[1744359450945,15.21615,1553.0,1552.9,0.3970125]
[1744359451125,18.21615,1553.0,1552.9,0.3970125]
[1744359451317,24.27573017,1553.0,1552.9,0.3970125]
[1744359453022,19.84935,1553.0,1552.9,0.3970125]
[1744359453349,26.30179548,1553.0,1552.9,0.3970125]
[1744359454442,19.86264548,1553.0,1552.9,0.3970125]
[1744359454746,8.777,1553.0,1552.9,0.3970125]
[1744359454928,15.21615,1553.0,1552.9,0.3970125]
[1744359455331,8.777,1553.0,1552.9,0.3970125]
[1744359456339,8.777,1553.0,1552.9,6.8365725]
[1744359457348,3.0,1553.2,1552.9,13.2761325]
[1744359457547,21.64927,1553.4,1553.0,6.439]
[1744359457748,17.530507,1553.4,1553.0,12.87798]
[1744359457950,11.092957,1553.4,1553.1,6.43866]
[1744359458131,11.092957,1553.4,1553.1,12.87722]
[1744359458328,8.774,1553.4,1553.1,6.43856]
[1744359459056,8.774,1553.4,1553.1,12.87709]
[1744359459229,8.774,1553.4,1553.2,6.43807]
[1744359460222,6.43806,1553.3,1553.0,6.43911]
[1744359460419,8.774,1553.4,1553.1,6.43859]
[1744359460623,4.34658735,1553.5,1553.2,6.43816]
[1744359460855,6.43671,1553.6,1553.2,6.43816]
[1744359461172,73.98977735,1553.7,1553.3,6.4377]
[1744359461325,55.215,1553.7,1553.4,6.43712]
[1744359461524,15.20988,1553.8,1553.4,6.43712]
[1744359461525,8.774,1553.8,1553.4,6.43712]
[1744359461855,6.4364,1553.7,1553.3,8.08933]
[1744359462056,6.43682,1553.6,1553.3,8.08933]
[1744359462377,12.87472,1553.5,1553.1,7.98502]
[1744359462667,6.43757,1553.4,1553.1,1.5465]
[1744359463035,6.43757,1553.4,1553.0,6.439]
[1744359463036,6.43808,1553.3,1553.0,6.439]
[1744359463386,6.43808,1553.3,1552.9,8.4251025]
[1744359463663,12.87637,1553.3,1552.9,14.8645125]
[1744359463965,3.0,1553.4,1552.9,3.47206375]
[1744359464133,9.43776,1553.4,1553.0,6.43885]
[1744359464621,15.8755,1553.4,1553.0,6.43885]
[1744359464768,6.43687,1553.6,1552.9,1.9856125]
[1744359465066,10.78348735,1553.6,1553.2,6.43809]
[1744359465236,4.34658735,1553.6,1553.0,6.43911]
[1744359465436,4.34658735,1553.6,1553.3,6.43788]
[1744359465636,15.21055,1553.7,1553.3,8.00174]
[1744359465836,15.21055,1553.7,1553.4,6.43721]
[1744359465837,8.774,1553.7,1553.4,6.43721]
[1744359466770,8.774,1553.7,1553.5,6.43688]
[1744359466970,8.774,1553.7,1553.4,6.43721]
[1744359467168,8.774,1553.7,1553.5,6.43674]
[1744359467747,5.89818735,1554.1,1553.4,7.881226]
[1744359467976,21.10503735,1554.3,1553.9,6.43514]
[1744359468182,16.75845,1554.3,1553.9,12.87036]
[1744359468488,3.0,1554.2,1553.8,6.43577]
[1744359468779,3.0,1554.2,1553.5,1.97413712]
[1744359468780,6.4358,1553.9,1553.5,8.41104712]
[1744359468976,6.4358,1553.9,1553.5,8.05521]
[1744359469139,1.6477,1553.9,1553.5,1.6183]
[1744359469474,9.43467,1554.1,1553.8,6.43577]
[1744359469649,9.71462,1554.2,1553.8,12.87144]
[1744359469849,9.71461,1554.2,1553.8,12.87134]
[1744359470038,16.14906,1554.2,1553.8,6.43567]
[1744359470240,6.43465,1554.1,1553.7,6.43621]
[1744359470439,6.43465,1554.1,1553.7,12.87242]
[1744359470669,6.43465,1554.1,1553.7,6.43621]
[1744359470882,6.43512,1554.0,1553.6,6.43659]
[1744359471073,6.43561,1553.9,1553.5,8.0552]
[1744359471272,6.43561,1553.9,1553.5,14.49206]
[1744359471468,6.43505,1554.0,1553.6,6.43647]
[1744359471673,4.6477,1554.2,1553.9,6.43526]
[1744359471985,11.08191,1554.2,1553.9,6.43526]
[1744359472160,6.43513,1554.0,1553.6,6.43653]
[1744359472594,6.43513,1554.0,1553.6,12.873]
[1744359472757,13.51038469,1554.2,1553.8,6.43544]
[1744359472962,11.08209,1554.2,1553.8,12.8711]
[1744359473186,11.08209,1554.2,1553.8,6.43544]
[1744359473374,6.43473,1554.1,1553.8,6.43544]
[1744359473574,6.43473,1554.1,1553.7,6.43622]
[1744359473775,12.86964,1554.1,1553.7,12.87228]
[1744359473978,12.86964,1554.1,1553.7,6.43606]
[1744359474303,6.43643,1553.7,1553.3,6.4377]
[1744359474662,6.43643,1553.7,1553.4,6.43743]
[1744359474862,6.4359,1553.8,1553.5,6.43704]
[1744359475063,8.94200691,1554.0,1553.3,6.4376]
[1744359475064,4.5138,1554.0,1553.3,6.4376]
[1744359475316,10.94884,1554.0,1553.6,6.43629]
[1744359475615,7.94884,1554.0,1553.7,6.43618]
[1744359476304,1.5138,1554.0,1553.7,12.87228]
[1744359476514,15.36648691,1554.2,1553.8,6.43561]
[1744359477906,15.36648691,1554.2,1553.6,6.43666]
[1744359477907,6.43559,1553.9,1553.6,6.43666]
[1744359479528,3.0,1554.0,1553.5,6.43707]
[1744359479825,7.93834,1554.2,1553.9,6.43529]
[1744359479980,6.43499,1554.1,1553.7,6.43608]
[1744359480177,1.5461,1554.0,1553.7,6.43608]
[1744359480382,7.98112,1554.0,1553.7,6.43608]
[1744359480626,1.5461,1554.0,1553.4,1.6554]
[1744359480830,6.43495,1554.1,1553.7,6.43609]
[1744359480978,6.43459,1554.1,1553.6,1.5864]
[1744359481183,6.43668,1553.6,1553.3,8.02417]
[1744359481428,12.87354,1553.6,1553.3,8.02417]
[1744359481588,6.43668,1553.6,1553.3,8.02417]
[1744359482000,6.43668,1553.6,1553.3,1.5864]
[1744359482233,8.02684,1553.5,1553.1,12.77696838]
[1744359482382,6.43766,1553.4,1553.1,4.73280838]
[1744359482882,6.4379,1553.3,1553.2,4.73280838]
[1744359483303,9.4379,1553.3,1553.2,4.73280838]
[1744359484086,3.0,1553.4,1553.2,4.73280838]
[1744359484315,9.43749,1553.4,1553.2,4.73280838]
[1744359484497,6.4379,1553.3,1553.2,4.73280838]
[1744359485106,6.4379,1553.3,1552.9,14.8547125]
[1744359485304,12.87604,1553.3,1552.9,9.90076375]
[1744359485606,12.87604,1553.3,1552.9,16.34011375]
[1744359485807,6.4375,1553.4,1553.1,6.43866]
[1744359486118,6.4375,1553.4,1553.0,6.43898]
[1744359486325,6.43713,1553.5,1552.9,3.46138375]
[1744359486513,6.43667,1553.6,1553.2,12.87645]
[1744359486717,6.43667,1553.6,1553.3,8.0852]
[1744359486886,6.43667,1553.6,1553.3,1.6474]
[1744359487205,6.43848,1553.2,1552.9,0.3970125]
[1744359487420,6.43888,1553.1,1552.9,0.3970125]
[1744359487708,12.87784,1553.1,1552.9,0.3970125]
[1744359487922,6.43915,1553.0,1552.9,0.3970125]
[1744359488492,9.43915,1553.0,1552.9,0.3970125]
[1744359489786,15.5378522,1553.0,1552.9,0.3970125]
[1744359489983,15.5378522,1553.0,1552.6,4.73280838]
[1744359489984,9.44039,1552.7,1552.6,4.73280838]
[1744359490185,8.00786,1552.2,1552.1,0.05]
[1744359490417,19.76786,1552.2,1552.1,0.05]
[1744359491823,20.31786,1552.2,1552.1,0.05]
[1744359492537,24.1150992,1552.2,1552.1,0.05]
[1744359493028,21.1803592,1552.6,1552.1,0.05]
[1744359493230,14.7395392,1552.6,1552.1,8.07547]
[1744359493433,8.762,1552.6,1552.4,6.44146]
[1744359493623,12.43111076,1552.8,1552.3,6.44181]
[1744359493624,6.44039,1552.7,1552.3,6.44181]
[1744359493822,6.43959,1552.9,1552.5,6.44103]
[1744359494020,73.732643,1553.0,1552.5,6.44103]
[1744359494021,65.542,1553.0,1552.5,1.5198]
[1744359494206,8.762,1553.0,1552.8,6.43975]
[1744359494911,8.762,1553.0,1552.9,6.43956]
[1744359495109,8.762,1553.0,1552.5,1.5198]
[1744359495110,9.43956,1552.9,1552.5,1.5198]
[1744359495312,6.4408,1552.6,1552.2,1.5354]
[1744359495523,6.44125,1552.5,1552.2,1.5354]
[1744359495700,6.4408,1552.6,1552.2,1.5354]
[1744359496032,6.44082,1552.6,1552.2,7.97769]
[1744359496598,6.44082,1552.6,1552.2,9.424746]
[1744359496805,7.9868,1552.6,1552.1,0.05]
[1744359497007,6.44183,1552.4,1552.1,0.05]
[1744359497194,6.44122,1552.5,1552.1,6.49286]
[1744359497424,7.98689,1552.6,1552.2,6.44245]
[1744359497603,6.44044,1552.7,1552.3,6.44196]
[1744359497804,6.44083,1552.6,1552.2,6.44229]
[1744359498015,6.44096,1552.6,1552.2,6.44245]
[1744359498216,9.43972,1552.9,1552.5,6.44095]
[1744359498406,9.43972,1552.9,1552.4,1.6411]
[1744359498407,9.43972,1552.9,1552.4,8.08268]
[1744359498599,9.43972,1552.9,1552.2,6.44237]
[1744359498600,6.44039,1552.7,1552.2,6.44237]
[1744359498840,6.44219,1552.3,1552.1,0.05]
[1744359499135,6.44246,1552.2,1552.1,0.05]
[1744359501330,8.602109,1552.3,1552.1,0.05]
[1744359501537,3.0,1552.3,1552.1,0.05]
[1744359501838,15.20566,1552.4,1552.1,6.4928]
[1744359502039,8.764,1552.4,1552.1,12.93546]
[1744359502244,4.43710076,1552.2,1552.1,0.05]
[1744359502435,11.77765084,1552.2,1552.1,0.05]
[1744359502744,8.764,1552.4,1552.1,0.05]
[1744359502948,15.20567,1552.4,1552.1,0.05]
[1744359503112,6.44228,1552.3,1552.1,0.05]
[1744359503851,8.764,1552.4,1552.1,0.05]
[1744359504035,1.6215,1552.1,1551.4,0.3970125]
[1744359504213,6.44491,1551.7,1551.4,0.3970125]
[1744359504413,6.44491,1551.7,1551.4,1.23570175]
[1744359504662,6.44417,1551.8,1551.4,1.23570175]
[1744359504849,15.20972,1551.9,1551.5,6.44534]
[1744359505149,6.44413,1551.8,1551.4,14.12683175]
[1744359505320,8.766,1551.9,1551.6,6.44455]
[1744359505530,8.766,1551.9,1551.7,7.088955]
[1744359505849,8.766,1551.9,1551.7,13.533275]
[1744359506045,8.766,1551.9,1551.8,6.44412]
[1744359506251,6.44253,1552.2,1551.8,12.88807]
[1744359506413,6.44253,1552.2,1551.9,1.5375]
[1744359506615,12.88524,1552.2,1551.9,1.5375]
[1744359507249,6.44253,1552.2,1551.9,1.5375]
[1744359507554,15.20906,1552.3,1551.7,2.271355]
[1744359507756,6.44262,1552.2,1551.8,6.44391]
[1744359507957,15.20906,1552.3,1551.8,6.44391]
[1744359508115,6.44284,1552.2,1551.8,6.44412]
[1744359508484,6.44279,1552.2,1551.8,12.88806]
[1744359508633,6.44313,1552.1,1551.8,1.5159415]
[1744359508830,6.44313,1552.1,1551.7,1.6269]
[1744359509035,6.44335,1552.0,1551.7,1.6269]
[1744359509234,8.1083,1552.2,1551.8,6.44406]
[1744359509450,8.1083,1552.2,1551.8,12.888]
[1744359511071,8.1083,1552.2,1551.8,6.44394]
[1744359511272,6.44309,1552.1,1551.7,14.51574]
[1744359511490,12.88632,1552.1,1551.7,8.07127]
[1744359512039,6.4425,1552.2,1551.8,6.44399]
[1744359512234,0.2496,1552.5,1552.4,6.44163]
[1744359512440,0.2496,1552.5,1552.4,1.604]
[1744359512776,0.2496,1552.5,1552.4,8.04563]
[1744359512977,0.2496,1552.5,1552.3,6.44201]
[1744359513163,0.2496,1552.5,1552.3,6.44188]
[1744359513551,0.2496,1552.5,1552.4,6.44163]
[1744359513752,0.2496,1552.5,1552.3,6.44184]
[1744359514479,0.2496,1552.5,1552.2,8.07629]
[1744359514645,7.360065,1552.5,1552.2,1.6339]
[1744359514970,7.360065,1552.5,1552.4,6.44163]
[1744359514971,0.2496,1552.5,1552.4,6.44163]
[1744359515382,0.2496,1552.5,1552.4,2.12668804]
[1744359516057,0.2496,1552.5,1552.4,8.56831804]
[1744359516385,0.2496,1552.5,1552.4,7.97143]
[1744359516878,0.2496,1552.5,1552.4,8.32988141]
[1744359517076,0.2496,1552.5,1552.4,9.80705555]
[1744359517374,0.2496,1552.5,1552.4,8.92746669]
[1744359517879,0.2496,1552.5,1552.4,0.95603669]
[1744359518070,0.2496,1552.5,1552.4,0.35845141]
[1744359518272,6.69082,1552.5,1552.4,0.35845141]
[1744359518581,0.2496,1552.5,1552.3,6.44186]
[1744359518757,0.2496,1552.5,1552.3,12.88372]
[1744359518953,0.2496,1552.5,1552.3,6.44186]
[1744359519253,0.2496,1552.5,1552.2,6.44243]
[1744359519862,5.94890076,1552.4,1551.7,6.44441]
[1744359520066,12.88566,1552.2,1551.8,8.59574896]
[1744359520251,12.88566,1552.2,1551.9,0.35918729]
[1744359520579,12.39057076,1552.4,1551.9,0.35918729]
[1744359520580,6.44213,1552.3,1551.9,0.35918729]
[1744359520787,7.68123308,1552.3,1551.9,0.35918729]
[1744359521252,6.44267,1552.2,1551.9,6.80288729]
[1744359521580,11.004299,1552.5,1552.1,6.44275]
[1744359521581,6.69083,1552.5,1552.1,6.44275]
[1744359521782,6.69083,1552.5,1552.2,1.5296]
[1744359522582,6.44222,1552.3,1552.0,6.44322]
[1744359523084,6.44246,1552.2,1552.1,0.59865184]
[1744359523582,6.44246,1552.2,1552.0,0.59865184]
[1744359523879,0.2496,1552.5,1552.1,6.44271]
[1744359524067,6.6909,1552.5,1552.1,6.44271]
[1744359524271,6.6909,1552.5,1552.1,12.88546]